[Event "4NCL Div 1 2024-25"]
[Site "England"]
[Date "2024.11.24"]
[Round "2.1"]
[White "Harvey, Marcus R"]
[Black "Merry, Alan B"]
[Result "1/2-1/2"]
[Annotator "TA"]
[ECO "A28"]
[WhiteElo "2491"]
[BlackElo "2417"]
[PlyCount "147"]
[EventDate "2024.11.23"]
[EventType "team-tourn"]
[EventCountry "ENG"]
[SourceTitle "playchess.com"]
[Source "ChessBase"]
[SourceQuality "1"]
[TimeControl "40/6000+30:3000+30"]

{[%evp 67,147,-57,-61,-63,-56,-62,-55,-62,-50,-56,-52,-54,-52,-52,-52,-59,-60,-67,-67,-67,-67,-67,-52,-52,-60,-67,-52,-74,0,0,0,0,0,0,0,0,0,0,0,0,0,0,0,0,0,0,0,-87,0,0,0,0,0,0,0,0,0,0,0,0,0,0,0,0,0,0,0,0,0,0,0,0,0,0,0,0,0,0,0,0,0,-8]} 1. c4 {[%emt 0:16:29]} e5 {[%emt 0:10:03]} 2. Nc3 {[%emt 0:00:14]} Nf6 {[%emt 0:00:04]} 3. Nf3 {[%emt 0:00:04]} Nc6 {[%emt 0:00:05]} 4. e3 {[%emt 0:00:04]} Bb4 {[%emt 0:00:05]} 5. Qc2 {[%emt 0:00:03]} Bxc3 {[%emt 0:03:22]} 6. Qxc3 {[%emt 0:00:05]} Qe7 {[%emt 0:01:05]} 7. d4 {[%emt 0:00:27]} Ne4 {[%emt 0:07:21]} 8. Qd3 {[%emt 0:00:14]} exd4 {[%emt 0:08:10]} 9. Nxd4 {[%emt 0:00:52]} O-O {[%emt 0:16:20]} 10. Be2 {[%emt 0:00:23]} Nxd4 {[%emt 0:03:51]} 11. Qxd4 {[%emt 0:00:47]} b6 {[%emt 0:01:53]} 12. O-O {[%emt 0:00:49]} Bb7 {[%emt 0:00:15]} 13. b3 {[%emt 0:05:23]} f5 {[%emt 0:09:45]} 14. Bb2 {[%emt 0:01:32]} Rae8 {[%emt 0:02:22]} 15. Rad1 {[%emt 0:03:04]} d6 {[%emt 0:04:19]} 16. Rde1 {[%emt 0:10:43]} Rf6 {[%emt 0:06:34]} 17. f3 {[%emt 0:01:00]} Ng5 {[%emt 0:03:13]} 18. Bd3 {[%emt 0:10:06]} Ref8 {[%emt 0:02:17]} 19. Bc2 {[%emt 0:05:33]} Rg6 {[%emt 0:02:31]} 20. Kh1 {[%emt 0:00:32]} Ne6 {[%emt 0:00:28]} 21. Qd2 {[%emt 0:01:19]} Qh4 {[%emt 0:01:19]} 22. Qf2 {[%emt 0:08:26]} Qh5 {[%emt 0:00:30]} 23. Bd1 {[%emt 0:02:47]} Rh6 {[%emt 0:03:31]} 24. Qg1 {[%emt 0:00:35]} Nc5 {[%emt 0:01:59]} 25. Bd4 {[%emt 0:02:08]} Nd3 {[%emt 0:03:33]} 26. Re2 {[%emt 0:00:30]} Re8 {[%emt 0:03:50]} 27. Rd2 {[%emt 0:06:58]} Nc5 {[%emt 0:00:17]} 28. Bxc5 {[%emt 0:08:14]} bxc5 {[%emt 0:00:32]} 29. f4 {[%emt 0:00:48]} Qh4 {[%emt 0:01:34]} 30. Bf3 {[%emt 0:00:08]} Be4 {[%emt 0:02:48]} 31. Bxe4 {[%emt 0:02:37]} Rxe4 {[%emt 0:00:05]} 32. Rf3 {[%emt 0:00:38]} Rhe6 {[%emt 0:00:33]} 33. h3 {[%emt 0:01:17]} a5 {[%emt 0:02:12]} 34. Rc2 {[%emt 0:00:37]} Re8 {[%emt 0:03:36]} 35. Kh2 {[%emt 0:00:28]} Qe7 {[%emt 0:01:51]} 36. Rc3 {[%emt 0:00:15]} Qf6 {[%emt 0:00:32]} 37. Qc1 {[%emt 0:00:40]} Ra8 {[%emt 0:02:02]} 38. Qd2 {[%emt 0:01:38]} Qe6 {[%emt 0:00:35]} 39. a4 {[%emt 0:02:24]} Rb8 {[%emt 0:01:13]} 40. Rd3 {[%emt 0:00:27]} Rb4 {[%emt 0:00:37]} 41. Qc3 {[%emt 0:50:24]} Kf7 {[%emt 0:27:01]} 42. Rf1 {[%emt 0:00:00]} Qf6 {[%emt 0:01:02]} 43. Qd2 {[%emt 0:00:00]} h5 {[%emt 0:07:08]} 44. Qe2 {[%emt 0:00:00]} h4 {[%emt 0:04:26]} 45. Rg1 {[%emt 0:00:00]} g6 {[%emt 0:00:17]} 46. Qd2 {[%emt 0:00:00]} Ke7 {[%emt 0:01:04]} 47. g4 {[%emt 0:00:00] [#]} Rexc4 {[%emt 0:05:20]} (47... hxg3+ $1 $17 48. Rxg3 Rexc4) 48. gxf5 $1 $11 {[%emt 0:00:00]} (48. bxc4 $2 Rb2 49. gxf5 gxf5 $19 (49... Rxd2+ $2 50. Rxd2 gxf5 51. Rg5 $19) (49... Rxd2+ $2 50. Rxd2 gxf5 51. Rc2 $19)) 48... gxf5 {[%emt 0:00:18]} 49. Qg2 $1 {[%emt 0:00:00]} (49. bxc4 $2 Rb2 $19) 49... Re4 {[%emt 0:02:16]} 50. Qg8 {[%emt 0:00:00]} Kd7 {[%emt 0:00:13]} 51. Rg6 $1 {[%emt 0:00:00]} Qb2+ {[%emt 0:03:02]} 52. Rg2 {[%emt 0:00:00]} Qf6 {[%emt 0:00:08]} 53. Rg6 {[%emt 0:00:00]} Qb2+ {[%emt 0:00:05]} 54. Rg2 {[%emt 0:00:00]} Qf6 {[%emt 0:00:08]} 55. Qd5 {[%emt 0:01:01]} c4 {[%emt 0:01:40]} 56. bxc4 {[%emt 0:00:13]} Rexc4 {[%emt 0:00:28]} 57. Qxa5 {[%emt 0:00:28] [#]} (57. Rdd2 $11) 57... Rb2 {[%emt 0:01:04]} (57... Rb1 $1 $17 58. Qe5 Qf7 (58... Qxe5 59. fxe5 Rcc1 60. Rgd2 $17)) 58. Rxb2 {[%emt 0:03:50]} Qxb2+ {[%emt 0:00:06]} 59. Rd2 {[%emt 0:00:01]} Qb1 {[%emt 0:01:06]} (59... Rc5 {simplifies} 60. Qxc7+ Kxc7 61. Rxb2 Rc3) 60. Qd5 {[%emt 0:03:34]} Qe4 {[%emt 0:00:58]} (60... Rxa4 $2 {loses.} 61. Qf7+ Kc8 62. Qe8+ Kb7 63. Qxa4 $18) 61. Qb5+ {[%emt 0:01:52]} Ke7 {[%emt 0:00:36]} 62. Qb2 {[%emt 0:02:45]} Rxa4 {[%emt 0:03:06]} 63. Qg7+ {[%emt 0:00:09]} Kd8 {[%emt 0:00:25]} 64. Rb2 {[%emt 0:01:25]} Kc8 {[%emt 0:01:13]} ({Worse is} 64... Qxe3 65. Rb8#) 65. Qg8+ {[%emt 0:00:50]} Kd7 {[%emt 0:00:06]} 66. Qf7+ {[%emt 0:00:19]} Kc6 {[%emt 0:01:50]} 67. Qb3 $1 {[%emt 0:00:12]} Ra5 {[%emt 0:00:57]} 68. Rg2 {[%emt 0:05:30]} Rb5 {[%emt 0:00:38]} 69. Qa3 {[%emt 0:01:22]} Kb7 {[%emt 0:00:33]} 70. Ra2 {[%emt 0:00:27]} Kc8 {[%emt 0:00:27]} 71. Rg2 {[%emt 0:04:18]} Kb7 {[%emt 0:00:02]} 72. Ra2 {[%emt 0:00:10]} Kc8 {[%emt 0:00:03]} 73. Rg2 $1 {[%emt 0:00:19]} Kb7 {[%emt 0:00:09]} 74. Ra2 {[%emt 0:07:03]} 1/2-1/2

[Event "4NCL Div 1 2024-25"]
[Site "England"]
[Date "2024.11.24"]
[Round "2.3"]
[White "Murphy, Conor E"]
[Black "Taylor, Martin R"]
[Result "1/2-1/2"]
[Annotator "TA"]
[ECO "C50"]
[WhiteElo "2444"]
[BlackElo "2353"]
[PlyCount "62"]
[EventDate "2024.11.23"]
[EventType "team-tourn"]
[EventCountry "ENG"]
[SourceTitle "playchess.com"]
[Source "ChessBase"]
[SourceQuality "1"]
[TimeControl "40/6000+30:3000+30"]

{[%evp 11,62,35,37,34,38,41,54,42,50,49,105,87,86,63,90,8,65,52,60,64,72,66,58,42,52,41,41,0,0,0,-18,0,0,-127,-146,-131,118,-81,-80,-99,-113,-189,-187,-204,-204,-181,-185,-185,0,-34,0,-172,0]} 1. e4 {[%emt 0:16:07]} e5 {[%emt 0:10:08]} 2. Nf3 {[%emt 0:00:10]} Nc6 {[%emt 0:00:11]} 3. Bc4 {[%emt 0:00:27]} Be7 {[%emt 0:00:21]} 4. d4 {[%emt 0:00:19]} exd4 {[%emt 0:00:23]} 5. Nxd4 {[%emt 0:00:19]} d6 {[%emt 0:00:36][%cal Bd7d6,Bd6d5][%mdl 32]} 6. Nxc6 {[%emt 0:00:35]} bxc6 {[%emt 0:00:18] [#]} 7. e5 $1 {[%emt 0:00:14]} d5 {[%emt 0:11:19]} (7... Qd7 8. Bf4) 8. Bd3 {[%emt 0:00:33]} Bc5 {[%emt 0:02:27]} 9. Qh5 {[%emt 0:00:23][%cal Oe1g1] Prevents Qh4. White is slightly better.} g6 {[%emt 0:09:25]} 10. Qe2 {[%emt 0:07:48]} Qh4 {[%emt 0:03:48]} ({Better is} 10... a5 $14) 11. h3 $1 $16 {[%emt 0:09:53]} Ne7 {[%emt 0:30:17]} 12. Nd2 {[%emt 0:08:20]} Bf5 {[%emt 0:04:51]} 13. Nf3 {[%emt 0:10:14]} ({White should play} 13. g4 $1 $16 {[%cal Rg4f5]} Bxd3 14. cxd3) 13... Qb4+ {[%emt 0:03:14]} (13... Bxd3 $11 14. cxd3 Qb4+ 15. Qd2 Nf5) 14. c3 $14 {[%emt 0:10:16]} Bxd3 {[%emt 0:03:09]} 15. Qxd3 {[%emt 0:00:10]} Qb5 {[%emt 0:00:41]} 16. Qc2 {[%emt 0:00:43] aiming for b4.} a5 {[%emt 0:01:44]} 17. Bg5 {[%emt 0:07:00]} Rb8 {[%emt 0:11:51]} 18. b3 {[%emt 0:04:40]} Nf5 {[%emt 0:01:51]} 19. Bf6 {[%emt 0:04:58]} O-O {[%emt 0:03:45]} 20. g4 {[%emt 0:13:17]} Ng7 {[%emt 0:00:39][%cal Oa5a4]} 21. h4 {[%emt 0:01:14] Strongly threatening h5.} Ne8 {[%emt 0:02:20] Threatens to win with ...Nxf6.} 22. O-O-O {[%emt 0:05:10]} (22. g5 $11) 22... Nxf6 {[%emt 0:01:57]} 23. exf6 {[%emt 0:00:02] And now h5 would win.} Rfe8 $2 {[%emt 0:00:28]} (23... Ba3+ $17 {stays on course.} 24. Kb1 a4) 24. Rhe1 $2 {[%emt 0:00:27] [#]} (24. h5 $1 $16 {[%cal Rh5g6] is necessary to keep the advantage. hxg6 is the strong threat.} Re2 25. Rd2) 24... a4 $1 $17 {[%emt 0:02:28]} 25. b4 {[%emt 0:01:26]} (25. Rxe8+ $6 Rxe8 26. Nd4 axb3 27. axb3 Qa6 $15) 25... Bd6 {[%emt 0:00:25]} 26. h5 {[%emt 0:05:49]} (26. Rxe8+ $17 Rxe8 27. Qd3) 26... Qc4 $19 {[%emt 0:00:51]} 27. Rd4 {[%emt 0:00:51]} Rxe1+ {[%emt 0:00:28]} 28. Nxe1 {[%emt 0:00:01]} Qf1 {[%emt 0:00:22]} 29. Rd1 {[%emt 0:00:02] [#]} Qc4 $2 {[%emt 0:02:03]} (29... Qh3 $1 $19 30. Nd3 Qxg4 (30... gxh5 31. gxh5 Ra8 32. Rg1+ Kh8 33. Qe2 $11) 31. Qxa4 c5 (31... Qxh5 32. Qxc6 Qf5 33. a4 $11)) 30. Rd4 $1 $15 {[%emt 0:00:55]} Qf1 {[%emt 0:00:05]} (30... Qb5 $15 31. Nd3 c5 32. bxc5 (32. Rxd5 $2 {perishes.} Qc4 $19) 32... Bxc5 33. Rxa4 Bf8) 31. Rd1 $1 $19 {[%emt 0:00:03] [#]} Qc4 $2 {[%emt 0:03:35] Weighted Error Value: White=0.24 (precise) /Black=0.35.  Missed win:     	---       	Black=1      Mistake:       	White=4     	Black=5      Inaccurate:     	White=1     	Black=1      OK:         	White=9     	Black=12     Best:        	White=1     	Black=1      Strong:       	White=3     	---} (31... Qh3 $1 $19 32. Nd3 Qxg4 (32... gxh5 33. gxh5 Ra8 34. Rg1+ Kh8 35. Qe2 $15) 33. Qxa4 c5 (33... Qxh5 34. Qxc6 Qf5 35. a4 $11)) 1/2-1/2

[Event "4NCL Div 1 2024-25"]
[Site "England"]
[Date "2024.11.24"]
[Round "2.4"]
[White "Rogers, Jonathan W"]
[Black "Wadsworth, Matthew J"]
[Result "0-1"]
[Annotator "TA"]
[ECO "B13"]
[WhiteElo "2331"]
[BlackElo "2461"]
[PlyCount "50"]
[EventDate "2024.11.23"]
[EventType "team-tourn"]
[EventCountry "ENG"]
[SourceTitle "playchess.com"]
[Source "ChessBase"]
[SourceQuality "1"]
[TimeControl "40/6000+30:3000+30"]

{[%evp 14,50,33,31,18,1,19,26,24,14,18,11,25,19,12,0,0,0,0,-5,0,0,0,0,0,0,0,-62,-80,-73,-74,-77,-87,-99,-96,-133,-126,-779,-768]} 1. e4 {[%emt 0:10:23]} c6 {[%emt 0:10:06]} 2. d4 {[%emt 0:00:22]} d5 {[%emt 0:00:07]} 3. exd5 {[%emt 0:00:06]} cxd5 {[%emt 0:00:08]} 4. Bd3 {[%emt 0:00:04]} Nc6 {[%emt 0:00:29]} 5. c3 {[%emt 0:00:07]} Nf6 {[%emt 0:00:28]} 6. Bf4 {[%emt 0:00:22]} Bg4 {[%emt 0:00:49]} 7. Qb3 {[%emt 0:00:22]} Qd7 {[%emt 0:00:06]} 8. Nd2 {[%emt 0:03:12]} e6 {[%emt 0:00:23]} 9. h3 {[%emt 0:03:01]} Bh5 {[%emt 0:00:44]} 10. Ngf3 {[%emt 0:00:06]} Bd6 {[%emt 0:00:33] White has an edge.} 11. Bxd6 {[%emt 0:04:58]} Qxd6 {[%emt 0:00:33]} 12. O-O {[%emt 0:00:36]} O-O {[%emt 0:00:09]} 13. Rae1 {[%emt 0:01:06]} Qc7 {[%emt 0:01:45]} 14. Re3 {[%emt 0:06:56]} Rab8 {[%emt 0:02:44]} 15. Rfe1 {[%emt 0:14:20]} b5 {[%emt 0:06:04]} 16. Ne5 {[%emt 0:00:44]} (16. Bxb5 $2 {too greedy.} a6 17. Ra1 Rxb5 $19 (17... axb5 $2 18. Qd1 $19)) 16... b4 {[%emt 0:01:30]} 17. Nxc6 {[%emt 0:14:02]} Qxc6 {[%emt 0:00:11]} 18. c4 {[%emt 0:00:03]} dxc4 {[%emt 0:02:27]} 19. Bxc4 {[%emt 0:01:14][%cal Re3e6]} Qd7 {[%emt 0:04:35]} 20. Ne4 {[%emt 0:08:55]} ({Better is} 20. g4 $1 $11 Bg6 (20... Qxd4 $2 {perishes.} 21. Nf3 $18) 21. Nf3) 20... Qxd4 $15 {[%emt 0:08:35]} 21. Rd3 {[%emt 0:00:16]} Qe5 {[%emt 0:01:02]} 22. Nxf6+ {[%emt 0:00:07]} Qxf6 {[%emt 0:00:07]} 23. Rd7 {[%emt 0:00:06]} a5 {[%emt 0:01:35]} 24. Re4 {[%emt 0:08:19]} Rbd8 {[%emt 0:05:06]} 25. Qd3 {[%emt 0:02:44][%mdl 8192] [#]} (25. Rxd8 $17 Rxd8 26. a3) 25... Bg6 {[%emt 0:01:14] Weighted Error Value: White=0.44/Black=0.02 (flawless) .  Loses game:     	White=1     	---        Mistake:       	White=1     	---        Inaccurate:     	White=1     	---        OK:         	White=9     	Black=10     Best:        	---       	Black=2} 0-1

[Event "4NCL Div 1 2024-25"]
[Site "England"]
[Date "2024.11.24"]
[Round "2.5"]
[White "Jackson, James P"]
[Black "Sowray, Peter J"]
[Result "1/2-1/2"]
[Annotator "TA"]
[ECO "B12"]
[WhiteElo "2373"]
[BlackElo "2205"]
[PlyCount "99"]
[EventDate "2024.11.23"]
[EventType "team-tourn"]
[EventCountry "ENG"]
[SourceTitle "playchess.com"]
[Source "ChessBase"]
[SourceQuality "1"]
[TimeControl "40/6000+30:3000+30"]

{[%evp 9,99,16,5,0,1,7,8,0,0,7,6,17,17,0,13,12,12,14,6,14,18,15,22,22,31,32,31,30,38,38,37,35,35,33,35,32,45,35,40,33,31,24,37,37,42,33,37,31,30,22,16,0,0,0,65,60,67,8,60,11,6,8,8,0,0,4,12,12,12,3,13,0,0,0,0,0,0,0,74,31,100,100,99,12,17,25,22,0,26,0,11,0]} 1. e4 {[%emt 0:15:09]} c6 {[%emt 0:10:06]} 2. d4 {[%emt 0:00:12]} d5 {[%emt 0:00:03]} 3. e5 {[%emt 0:00:23]} c5 {[%emt 0:00:07]} 4. dxc5 {[%emt 0:00:20]} e6 {[%emt 0:00:29]} 5. Be3 {[%emt 0:00:37]} Nd7 {[%emt 0:00:46][%csl LRc5,LRe5]} 6. Nf3 {[%emt 0:00:15]} Bxc5 {[%emt 0:01:00]} 7. Bxc5 {[%emt 0:00:35]} Nxc5 {[%emt 0:00:08]} 8. Qd4 {[%emt 0:00:20]} Qb6 {[%emt 0:01:48]} 9. Nbd2 {[%emt 0:00:14]} Ne7 {[%emt 0:01:10]} 10. Nb3 {[%emt 0:00:27]} Nxb3 {[%emt 0:00:38]} 11. axb3 {[%emt 0:00:06]} Qxd4 {[%emt 0:01:10]} 12. Nxd4 {[%emt 0:00:05]} Ng6 {[%emt 0:00:10]} 13. Nf3 {[%emt 0:00:06]} Bd7 {[%emt 0:05:05]} 14. g3 {[%emt 0:08:17]} a6 {[%emt 0:05:12]} 15. Bg2 {[%emt 0:15:07]} Rc8 {[%emt 0:10:04]} 16. O-O-O {[%emt 0:03:24][%cal Be1c1,Bc1b1,Bb1c2][%mdl 32]} O-O {[%emt 0:02:44]} 17. Rhe1 {[%emt 0:00:26]} Rc7 {[%emt 0:02:05]} 18. Nd4 {[%emt 0:01:01]} Ne7 {[%emt 0:01:57]} 19. f4 {[%emt 0:02:13]} Rfc8 {[%emt 0:01:46]} 20. c3 {[%emt 0:00:52]} Nc6 {[%emt 0:02:45]} 21. Kb1 {[%emt 0:11:08]} Nxd4 {[%emt 0:05:09]} 22. Rxd4 {[%emt 0:00:32]} Kf8 {[%emt 0:04:38]} 23. g4 {[%emt 0:04:55]} Ke7 {[%emt 0:00:32]} 24. h4 {[%emt 0:06:31]} a5 {[%emt 0:01:25]} 25. Bf1 {[%emt 0:01:24]} Ra8 {[%emt 0:13:04]} 26. Kc2 {[%emt 0:07:58]} b5 {[%emt 0:07:46]} 27. b4 {[%emt 0:04:08]} axb4 {[%emt 0:02:04]} 28. Rxb4 {[%emt 0:00:32]} Ra4 {[%emt 0:00:51]} 29. Kb3 {[%emt 0:06:55]} Rca7 {[%emt 0:03:18]} 30. Rd1 {[%emt 0:02:45]} Rxb4+ {[%emt 0:04:27]} 31. cxb4 $11 {[%emt 0:00:05][%mdl 4096] Endgame KRB-KRB} Bc6 {[%emt 0:02:14]} (31... Rc7 $1 $11) 32. Rc1 {[%emt 0:01:52]} Kd7 {[%emt 0:00:07]} 33. Rc5 {[%emt 0:00:29] White is more active.} (33. Bd3 $14) 33... Rb7 {[%emt 0:00:11]} (33... Ra1 $1 $11 34. Bxb5 Bxb5 35. Rxb5 Kc8) 34. Kc2 {[%emt 0:01:42]} (34. Bd3 $14 {was preferable.}) 34... Kc7 {[%emt 0:01:25]} 35. Rc3 {[%emt 0:00:23]} Kb6 {[%emt 0:00:27]} 36. Bd3 {[%emt 0:10:15]} h6 {[%emt 0:03:01]} 37. Kd2 {[%emt 0:01:53]} Ra7 {[%emt 0:07:12]} 38. Ra3 {[%emt 0:00:33]} Rd7 {[%emt 0:03:41]} 39. g5 {[%emt 0:04:35]} hxg5 {[%emt 0:04:34]} 40. fxg5 {[%emt 0:01:13] Hoping for h5.} g6 {[%emt 0:00:28]} 41. Ra1 {[%emt 0:22:33]} d4 {[%emt 0:21:29][%cal Bd5d4,Bd4d3][%mdl 32]} 42. Rf1 {[%emt 0:00:57]} Bd5 {[%emt 0:06:06]} 43. Rf4 {[%emt 0:06:55]} Bb3 {[%emt 0:03:06]} (43... Bg2 $11) 44. Be4 {[%emt 0:03:07]} Bc4 {[%emt 0:00:38]} ({Better is} 44... Ba2 $1 $14) 45. Bf3 $16 {[%emt 0:00:31]} d3 {[%emt 0:02:20]} 46. h5 {[%emt 0:03:37]} (46. Bd1 $16) 46... gxh5 $11 {[%emt 0:00:48]} 47. Bxh5 {[%emt 0:00:05]} Rd5 {[%emt 0:00:45]} 48. Re4 {[%emt 0:01:27]} ({Don't play} 48. Bxf7 Rxe5 49. Bh5 Rxg5 $17) 48... Rd7 {[%emt 0:02:09]} (48... Rd8 $5) 49. Rf4 {[%emt 0:06:38]} Rd5 {[%emt 0:00:09]} 50. Re4 {[%emt 0:09:43]} (50. Bxf7 Rxe5 51. Kc3 Re2 $17 (51... Rxg5 52. b3 $15)) 1/2-1/2

[Event "4NCL Div 1 2024-25"]
[Site "England"]
[Date "2024.11.24"]
[Round "2.6"]
[White "Zhao, George"]
[Black "Zhou, Yang-Fan"]
[Result "1/2-1/2"]
[Annotator "RC"]
[ECO "A40"]
[WhiteElo "2233"]
[BlackElo "2418"]
[PlyCount "220"]
[EventDate "2024.11.23"]
[EventType "team-tourn"]
[EventCountry "ENG"]
[SourceTitle "playchess.com"]
[Source "ChessBase"]
[SourceQuality "1"]
[TimeControl "40/6000+30:3000+30"]

1. d4 {[%emt 0:10:06]} g6 {[%emt 0:10:02]} 2. c4 {[%emt 0:02:03]} Bg7 {[%emt 0:00:07]} 3. g3 {[%emt 0:00:41]} c5 {[%emt 0:01:13]} 4. dxc5 {[%emt 0:02:45]} Qa5+ {[%emt 0:01:34]} 5. Nd2 {[%emt 0:03:17]} Qxc5 {[%emt 0:01:53]} 6. Bg2 {[%emt 0:01:39]} Nc6 {[%emt 0:00:09]} 7. Ngf3 {[%emt 0:00:57]} a5 {[%emt 0:00:40]} 8. O-O {[%emt 0:02:51]} d6 {[%emt 0:00:02]} 9. a3 {[%emt 0:04:33]} a4 {[%emt 0:00:22]} 10. Ne1 {[%emt 0:02:12]} Nf6 {[%emt 0:09:13]} 11. Nd3 {[%emt 0:02:10]} Qa5 {[%emt 0:01:25]} 12. b4 {[%emt 0:06:44]} axb3 {[%emt 0:00:05]} 13. Nxb3 {[%emt 0:01:25]} Qa4 {[%emt 0:01:37]} 14. Nb2 {[%emt 0:07:55]} Qa6 {[%emt 0:02:25]} 15. c5 {[%emt 0:01:45]} d5 {[%emt 0:05:57]} 16. Nd3 {[%emt 0:02:01]} O-O {[%emt 0:08:42]} 17. Bb2 {[%emt 0:04:02]} Bf5 {[%emt 0:07:12]} 18. Nd4 {[%emt 0:05:25]} Bxd3 {[%emt 0:01:56]} 19. exd3 {[%emt 0:01:09]} Ne5 {[%emt 0:05:03]} 20. Nf5 {[%emt 0:03:37]} Nxd3 {[%emt 0:01:14]} 21. Nxe7+ {[%emt 0:01:10]} Kh8 {[%emt 0:00:01]} 22. Bxf6 {[%emt 0:01:20]} Qxf6 {[%emt 0:02:35]} 23. Qxd3 {[%emt 0:00:29]} Qxe7 {[%emt 0:00:02]} 24. Rae1 {[%emt 0:00:37]} Qxc5 {[%emt 0:01:16]} 25. Qxd5 {[%emt 0:00:05]} Qxa3 {[%emt 0:05:02]} 26. Qxb7 {[%emt 0:00:04]} Rab8 {[%emt 0:01:19]} 27. Qf3 {[%emt 0:01:09]} Rb3 {[%emt 0:01:49]} 28. Re3 {[%emt 0:01:28]} Rxe3 {[%emt 0:00:05]} 29. Qxe3 {[%emt 0:00:03]} Qxe3 {[%emt 0:01:11]} 30. fxe3 {[%emt 0:00:10]} Bh6 {[%emt 0:01:49]} 31. e4 {[%emt 0:01:28]} Be3+ {[%emt 0:00:18]} 32. Kh1 {[%emt 0:00:06]} Kg7 {[%emt 0:00:34]} 33. Re1 {[%emt 0:00:44]} Bd4 {[%emt 0:01:08]} 34. Rd1 {[%emt 0:00:46]} Be5 {[%emt 0:01:31]} 35. Bf3 {[%emt 0:01:53]} h5 {[%emt 0:01:04]} 36. Kg2 {[%emt 0:01:13]} Rb8 {[%emt 0:01:34]} 37. Rd2 {[%emt 0:04:24]} Kh6 {[%emt 0:01:38]} 38. h3 {[%emt 0:04:13]} Rb3 {[%emt 0:02:21]} 39. h4 {[%emt 0:02:28]} f6 {[%emt 0:12:07]} 40. Ra2 {[%emt 0:01:10]} Rb6 {[%emt 0:10:16]} 41. g4 {[%emt 0:53:06]} hxg4 {[%emt 0:50:29]} 42. Bxg4 {[%emt 0:00:12]} Rb3 {[%emt 0:04:00]} 43. Bf3 {[%emt 0:06:12]} g5 {[%emt 0:00:14]} 44. hxg5+ {[%emt 0:03:34]} Kxg5 {[%emt 0:00:04]} 45. Bd1 {[%emt 0:01:12]} Rg3+ {[%emt 0:04:47]} 46. Kf1 {[%emt 0:00:30]} Kf4 {[%emt 0:00:34]} 47. Re2 {[%emt 0:04:07]} Bd4 {[%emt 0:03:55]} 48. Rg2 {[%emt 0:01:44]} Rh3 {[%emt 0:01:00]} 49. Bg4 {[%emt 0:01:32]} Rh4 {[%emt 0:00:00]} 50. Bd1 {[%emt 0:00:00]} Rh1+ {[%emt 0:00:00]} 51. Ke2 {[%emt 0:00:00]} Kxe4 {[%emt 0:00:00]} 52. Bc2+ {[%emt 0:00:00]} Ke5 {[%emt 0:00:00]} 53. Kd2 {[%emt 0:00:00]} Rh3 {[%emt 0:00:00]} 54. Re2+ {[%emt 0:00:00]} Kd5 {[%emt 0:00:00]} 55. Bd3 {[%emt 0:00:00]} Be5 {[%emt 0:00:00]} 56. Kc2 {[%emt 0:00:00]} Rg3 {[%emt 0:00:00]} 57. Re1 {[%emt 0:00:00]} Rg5 {[%emt 0:00:00]} 58. Re2 {[%emt 0:00:00]} f5 {[%emt 0:00:00]} 59. Bxf5 {[%emt 0:00:00]} Rxf5 {[%emt 0:00:00]} 60. Kb3 {[%emt 0:00:00]} Rf8 {[%emt 0:00:00]} 61. Rd2+ {[%emt 0:00:00]} Bd4 {[%emt 0:00:00]} 62. Kc2 {[%emt 0:00:00]} Kc4 {[%emt 0:00:00]} 63. Re2 {[%emt 0:00:00]} Ra8 {[%emt 0:00:00]} 64. Rd2 {[%emt 0:00:00]} Be3 {[%emt 0:00:00]} 65. Re2 {[%emt 0:00:00]} Kd4 {[%emt 0:00:00]} 66. Re1 {[%emt 0:00:00]} Rc8+ {[%emt 0:00:00]} 67. Kb3 {[%emt 0:00:00]} Kd3 {[%emt 0:00:00]} 68. Rb1 {[%emt 0:00:00]} Bc1 {[%emt 0:00:00]} 69. Ka4 {[%emt 0:00:00]} Bd2 {[%emt 0:00:00]} 70. Rb3+ {[%emt 0:00:00]} Bc3 {[%emt 0:00:00]} 71. Kb5 {[%emt 0:01:22]} Kd4 {[%emt 0:00:00]} 72. Ka6 {[%emt 0:01:29]} Kc4 {[%emt 0:00:00]} 73. Kb7 {[%emt 0:02:09]} Rh8 {[%emt 0:00:00]} 74. Rb6 {[%emt 0:00:18]} Be5 {[%emt 0:00:53]} 75. Ka6 {[%emt 0:00:47]} Bd4 {[%emt 0:03:03]} 76. Rc6+ {[%emt 0:00:51]} Kd5 {[%emt 0:00:17]} 77. Kb7 {[%emt 0:01:32]} Be5 {[%emt 0:01:46]} 78. Rb6 {[%emt 0:00:53]} Rh7+ {[%emt 0:00:24]} 79. Ka6 {[%emt 0:00:32]} Bd4 {[%emt 0:00:41]} 80. Rb7 {[%emt 0:01:12]} Rh1 {[%emt 0:00:22]} 81. Kb5 {[%emt 0:00:10]} Be5 {[%emt 0:00:17]} 82. Rd7+ {[%emt 0:00:36]} Bd6 {[%emt 0:00:02]} 83. Rb7 {[%emt 0:00:25]} Rh4 {[%emt 0:00:42]} 84. Rb6 {[%emt 0:01:31]} Rh7 {[%emt 0:00:23]} 85. Ka6 {[%emt 0:00:52]} Bc7 {[%emt 0:02:09]} 86. Rb1 {[%emt 0:01:19]} Be5 {[%emt 0:00:44]} 87. Rb5+ {[%emt 0:00:21]} Ke6 {[%emt 0:00:42]} 88. Rb6+ {[%emt 0:00:55]} Bd6 {[%emt 0:00:01]} 89. Rb7 {[%emt 0:01:25]} Rh1 {[%emt 0:00:22]} 90. Kb5 {[%emt 0:00:20]} Kd5 {[%emt 0:00:20]} 91. Rb6 {[%emt 0:00:18]} Bc7 {[%emt 0:00:29]} 92. Rb7 {[%emt 0:00:28]} Rc1 {[%emt 0:00:13]} 93. Ka4 {[%emt 0:00:54]} Ra1+ {[%emt 0:02:30]} 94. Kb5 {[%emt 0:00:21]} Rb1+ {[%emt 0:00:53]} 95. Ka6 {[%emt 0:00:11]} Rc1 {[%emt 0:00:12]} 96. Kb5 {[%emt 0:00:15]} Rc5+ {[%emt 0:01:56]} 97. Kb4 {[%emt 0:00:26]} Kd4 {[%emt 0:00:56]} 98. Rb5 {[%emt 0:00:48]} Rc1 {[%emt 0:00:33]} 99. Kb3 {[%emt 0:00:12]} Bd6 {[%emt 0:00:40]} 100. Kb2 {[%emt 0:00:24]} Rg1 {[%emt 0:01:03]} 101. Kb3 {[%emt 0:00:32]} Bc5 {[%emt 0:00:07]} 102. Ra5 {[%emt 0:01:03]} Rg3+ {[%emt 0:00:52]} 103. Kc2 {[%emt 0:00:44]} Kc4 {[%emt 0:00:18]} 104. Ra4+ {[%emt 0:00:28]} Bb4 {[%emt 0:00:05]} 105. Ra2 {[%emt 0:00:28]} Rg1 {[%emt 0:00:30]} 106. Rb2 {[%emt 0:01:49]} Ra1 {[%emt 0:01:04]} 107. Rb1 {[%emt 0:00:54]} Ra3 {[%emt 0:00:08]} 108. Kb2 {[%emt 0:02:49]} Rh3 {[%emt 0:01:41]} 109. Rc1+ {[%emt 0:00:34]} Bc3+ {[%emt 0:00:07]} 110. Ka3 {[%emt 0:01:05]} Rh8 {[%emt 0:00:14]} 1/2-1/2